fUST/lending_fUST_20250127
["ID","MTS","AMOUNT","RATE_DAILY","PERIOD"]
[350526057,1737946242043,-673.99,0.00018336,2]
[350526058,1737946242052,-616.33,0.00018336,2]
[350526059,1737946242062,-500.0,0.00018336,2]
[350526060,1737946242072,-507.80351533,0.00018336,2]
[350526061,1737946242081,-500.0,0.00018336,2]
[350526062,1737946242090,-348.53197741,0.00018336,2]
[350526063,1737946242099,-500.0,0.00018336,2]
[350526064,1737946242109,-500.0,0.00018336,2]
[350526065,1737946242119,-509.46946933,0.00018336,2]
[350526066,1737946242128,-502.01924114,0.00018336,2]
[350526067,1737946242138,-500.0,0.00018336,2]
[350526068,1737946242147,-1083.88,0.00018336,2]
[350526069,1737946242157,-504.19583548,0.00018336,2]
[350526070,1737946242269,-226.30762886,0.00018336,2]
[350526071,1737946242279,-505.82485419,0.00018336,2]
[350526072,1737946242289,-500.0,0.00018336,2]
[350526073,1737946242298,-500.0,0.00018336,2]
[350526074,1737946242307,-500.0,0.00018336,2]
[350526075,1737946242316,-500.0,0.00018336,2]
[350526076,1737946242325,-164.886,0.00018461,2]
[350526077,1737946242334,-500.0,0.00018472,2]
[350526078,1737946242343,-529.28,0.00018472,2]
[350526079,1737946242352,-500.0,0.00018472,2]
[350526080,1737946242362,-500.0,0.00018472,2]
[350526081,1737946242371,-534.06422811,0.00018472,2]
[350526082,1737946242380,-500.0,0.00018472,2]
[350526083,1737946242390,-351.75782394,0.00018472,2]
[350526084,1737946242399,-500.0,0.00018472,2]
[350526085,1737946242408,-508.64241922,0.00018472,2]
[350526086,1737946242418,-500.0,0.00018472,2]
[350526087,1737946242427,-500.0,0.00018472,2]
[350526088,1737946242436,-500.0,0.00018472,2]
[350526089,1737946242445,-500.0,0.00018472,2]
[350526090,1737946242454,-500.0,0.00018472,2]
[350526091,1737946242463,-500.0,0.00018472,2]
[350526092,1737946242472,-500.0,0.00018472,2]
[350526093,1737946242481,-500.0,0.00018472,2]
[350526094,1737946242490,-500.0,0.00018472,2]
[350526095,1737946242499,-500.0,0.00018472,2]
[350526096,1737946242508,-500.0,0.00018472,2]
[350526097,1737946242516,-233.14445031,0.00018472,2]
[350526098,1737946242525,-500.0,0.00018472,2]
[350526099,1737946242535,-500.0,0.00018472,2]
[350526100,1737946242543,-500.0,0.00018472,2]
[350526101,1737946242552,-500.0,0.00018472,2]
[350526102,1737946242562,-1653.98,0.00018472,2]
[350526103,1737946242571,-175.98147383,0.00018472,2]
[350526104,1737946242581,-500.0,0.00018472,2]
[350526105,1737946242590,-621.47,0.00018472,2]
[350526106,1737946242599,-500.0,0.00018472,2]
[350526107,1737946242608,-500.0,0.00018472,2]
[350526108,1737946242617,-500.0,0.00018473,2]
[350526110,1737946242627,-500.0,0.00018473,2]
[350526112,1737946242636,-500.0,0.00018473,2]
[350526114,1737946242645,-500.0,0.00018473,2]
[350526115,1737946242654,-500.0,0.00018473,2]
[350526116,1737946242665,-500.0,0.00018473,2]
[350526117,1737946242676,-500.0,0.00018473,2]
[350526118,1737946242685,-503.27955672,0.00018473,2]
[350526119,1737946242694,-500.0,0.00018473,2]
[350526120,1737946242705,-620.94,0.00018473,2]
[350526121,1737946242715,-643.89,0.00018473,2]
[350526122,1737946242724,-500.0,0.00018473,2]
[350526124,1737946242734,-564.35,0.00018473,2]
[350526126,1737946242746,-472.48,0.00018473,2]
[350526129,1737946242755,-284.95,0.00018473,2]
[350526132,1737946242766,-500.0,0.00018473,2]
[350526135,1737946242776,-500.0,0.00018473,2]
[350526139,1737946242785,-500.0,0.00018473,2]
[350526144,1737946242794,-500.0,0.00018473,2]
[350526148,1737946242803,-636.83558358,0.00018473,2]
[350526151,1737946242813,-629.57687233,0.00018473,2]
[350526153,1737946242822,-500.0,0.00018473,2]
[350526154,1737946242831,-178.34,0.00018473,2]
[350526155,1737946242841,-2312.72,0.00018473,2]
[350526157,1737946242850,-673.99,0.00018473,2]
[350526159,1737946242859,-500.0,0.00018473,2]
[350526161,1737946242869,-230.03896398,0.00018473,2]
[350526163,1737946242879,-500.0,0.00018473,2]
[350526165,1737946242888,-508.62693794,0.00018473,2]
[350526167,1737946242897,-500.0,0.00018473,2]
[350526169,1737946242906,-1083.88,0.00018473,2]
[350526171,1737946242915,-500.0,0.00018473,2]
[350526173,1737946242925,-249.42,0.00018473,2]
[350526174,1737946242935,-150.68,0.000186,2]
[350526175,1737946242944,-150.68,0.000186,2]
[350526176,1737946242953,-500.0,0.00018609,2]
[350526177,1737946242964,-529.28,0.00018609,2]
[350526179,1737946242975,-500.0,0.00018609,2]
[350526181,1737946242984,-500.0,0.00018609,2]
[350526182,1737946242993,-500.0,0.00018609,2]
[350526183,1737946243002,-500.0,0.00018609,2]
[350526184,1737946243012,-500.0,0.00018609,2]
[350526185,1737946243020,-500.0,0.00018609,2]
[350526187,1737946243030,-500.0,0.00018609,2]
[350526188,1737946243039,-500.0,0.00018609,2]
[350526189,1737946243048,-500.0,0.00018609,2]
[350526190,1737946243057,-500.0,0.00018609,2]
[350526191,1737946243066,-238.1,0.00018609,2]
[350526192,1737946243075,-500.0,0.00018609,2]
[350526193,1737946243085,-500.0,0.00018609,2]
[350526194,1737946243094,-500.0,0.00018609,2]
[350526195,1737946243103,-500.0,0.00018609,2]
[350526196,1737946243113,-500.0,0.00018609,2]
[350526197,1737946243122,-500.0,0.00018609,2]
[350526198,1737946243131,-436.5136036,0.00018609,2]
[350526199,1737946243140,-500.0,0.00018609,2]
[350526200,1737946243149,-1653.98,0.00018609,2]
[350526201,1737946243158,-463.23863804,0.00018609,2]
[350526202,1737946243168,-621.47,0.00018609,2]
[350526203,1737946243177,-505.1005114,0.00018609,2]
[350526205,1737946243187,-500.0,0.00018609,2]
[350526206,1737946243196,-285.0,0.0001861,2]
[350526207,1737946243205,-500.0,0.0001861,2]
[350526208,1737946243215,-500.0,0.0001861,2]
[350526209,1737946243225,-500.0,0.0001861,2]
[350526210,1737946243234,-223.77,0.0001861,2]
[350526211,1737946243243,-500.0,0.0001861,2]
[350526212,1737946243253,-434.13,0.0001861,2]
[350526213,1737946243262,-282.43280225,0.0001861,2]
[350526214,1737946243271,-387.8,0.0001861,2]
[350526215,1737946243281,-500.0,0.0001861,2]
[350526216,1737946243290,-2312.72,0.0001861,2]
[350526217,1737946243300,-673.99,0.0001861,2]
[350526218,1737946243309,-300.71,0.0001861,2]
[350526219,1737946243318,-500.0,0.0001861,2]
[350526220,1737946243327,-1083.88,0.0001861,2]
[350526221,1737946243336,-500.0,0.0001861,2]
[350526222,1737946243346,-501.25496188,0.00018701,2]
[350526223,1737946243356,-529.28,0.00018746,2]
[350526224,1737946243365,-500.0,0.00018746,2]
[350526225,1737946243375,-500.0,0.00018746,2]
[350526226,1737946243384,-500.0,0.00018746,2]
[350526227,1737946243394,-500.0,0.00018746,2]
[350526228,1737946243404,-395.62,0.00018746,2]
[350526229,1737946243414,-500.0,0.00018746,2]
[350526230,1737946243425,-500.0,0.00018746,2]
[350526231,1737946243434,-500.0,0.00018746,2]
[350526232,1737946243444,-500.0,0.00018746,2]
[350526233,1737946243454,-500.0,0.00018746,2]
[350526234,1737946243463,-500.0,0.00018746,2]
[350526235,1737946243473,-510.14,0.00018746,2]
[350526236,1737946243483,-500.0,0.00018746,2]
[350526237,1737946243492,-500.0,0.00018746,2]
[350526238,1737946243502,-500.0,0.00018746,2]
[350526239,1737946243511,-500.0,0.00018746,2]
[350526240,1737946243521,-357.76,0.00018746,2]
[350526241,1737946243530,-1653.98,0.00018746,2]
[350526242,1737946243539,-621.47,0.00018746,2]
[350526243,1737946243549,-500.0,0.00018747,2]
[350526244,1737946243559,-500.0,0.00018747,2]
[350526245,1737946243569,-395.37,0.00018747,2]
[350526246,1737946243578,-318.73,0.00018747,2]
[350526247,1737946243587,-500.0,0.00018747,2]
[350526248,1737946243596,-2312.72,0.00018747,2]
[350526249,1737946243606,-673.99,0.00018747,2]
[350526250,1737946243615,-500.0,0.00018747,2]
[350526251,1737946243625,-1083.88,0.00018747,2]
[350526252,1737946243634,-325.41801036,0.00018747,2]
[350526253,1737946243644,-529.28,0.00018883,2]
[350526254,1737946243654,-500.0,0.00018883,2]
[350526255,1737946243667,-500.0,0.00018883,2]
[350526256,1737946243676,-500.0,0.00018883,2]
[350526257,1737946243685,-500.0,0.00018883,2]
[350526258,1737946243695,-500.0,0.00018883,2]
[350526259,1737946243706,-194.22,0.00018883,2]
[350526260,1737946243715,-500.0,0.00018883,2]
[350526261,1737946243724,-500.0,0.00018883,2]
[350526262,1737946243734,-500.0,0.00018883,2]
[350526263,1737946243745,-500.0,0.00018883,2]
[350526264,1737946243755,-500.0,0.00018883,2]
[350526265,1737946243764,-469.24678829,0.00018883,2]
[350526266,1737946243773,-500.0,0.00018883,2]
[350526267,1737946243782,-1653.98,0.00018883,2]
[350526268,1737946243791,-621.47,0.00018883,2]
[350526269,1737946243801,-500.0,0.00018884,2]
[350526270,1737946243810,-407.22,0.00018884,2]
[350526271,1737946243819,-500.0,0.00018884,2]
[350526272,1737946243829,-2312.72,0.00018884,2]
[350526273,1737946243838,-673.99,0.00018884,2]
[350526274,1737946243847,-323.74,0.00018884,2]
[350526275,1737946243857,-1083.88,0.00018884,2]
[350526276,1737946243866,-1197.74747753,0.000189,2]
[350526277,1737946243875,-302.90913937,0.00019,2]
[350526278,1737946243886,-529.28,0.0001902,2]
[350526279,1737946243896,-500.0,0.0001902,2]
[350526280,1737946243905,-500.0,0.0001902,2]
[350526281,1737946243914,-500.0,0.0001902,2]
[350526282,1737946243924,-500.0,0.0001902,2]
[350526283,1737946243934,-500.0,0.0001902,2]
[350526284,1737946243944,-500.0,0.0001902,2]
[350526285,1737946243953,-500.0,0.0001902,2]
[350526286,1737946243963,-512.03320888,0.0001902,2]
[350526287,1737946243972,-500.0,0.0001902,2]
[350526288,1737946243981,-500.0,0.0001902,2]
[350526289,1737946243990,-500.0,0.0001902,2]
[350526290,1737946243999,-500.0,0.0001902,2]
[350526291,1737946244008,-1653.98,0.0001902,2]
[350526292,1737946244018,-621.47,0.0001902,2]
[350526293,1737946244027,-152.8,0.00019021,2]
[350526294,1737946244036,-196.81,0.00019021,2]
[350526295,1737946244045,-2312.72,0.00019021,2]
[350526296,1737946244055,-673.99,0.00019021,2]
[350526297,1737946244064,-1083.88,0.00019021,2]
[350526298,1737946244073,-300.0,0.000191,8]
[350526299,1737946244083,-529.28,0.00019157,2]
[350526300,1737946244093,-500.0,0.00019157,2]
[350526301,1737946244103,-500.0,0.00019157,2]
[350526302,1737946244112,-500.0,0.00019157,2]
[350526303,1737946244121,-500.0,0.00019157,2]
[350526304,1737946244131,-500.0,0.00019157,2]
[350526305,1737946244140,-500.0,0.00019157,2]
[350526306,1737946244150,-500.0,0.00019157,2]
[350526307,1737946244159,-454.76,0.00019157,2]
[350526308,1737946244168,-500.0,0.00019157,2]
[350526309,1737946244178,-256.2145837,0.00019157,2]
[350526310,1737946244188,-598.04898966,0.00019157,2]
[350526311,1737946244197,-1653.98,0.00019157,2]
[350526312,1737946244207,-621.47,0.00019157,2]
[350526313,1737946244216,-2312.72,0.00019158,2]
[350526314,1737946244226,-673.99,0.00019158,2]
[350526315,1737946244235,-1083.88,0.00019158,2]
[350526316,1737946244245,-302.90913937,0.0001919,2]
[350526317,1737946244254,-529.28,0.00019294,2]
[350526318,1737946244263,-500.0,0.00019294,2]
[350526319,1737946244273,-500.0,0.00019294,2]
[350526320,1737946244282,-500.0,0.00019294,2]
[350526321,1737946244292,-500.0,0.00019294,2]
[350526322,1737946244301,-500.0,0.00019294,2]
[350526323,1737946244310,-172.62666364,0.00019294,2]
[350526324,1737946244320,-500.0,0.00019294,2]
[350526325,1737946244329,-500.0,0.00019294,2]
[350526326,1737946244339,-1653.98,0.00019294,2]
[350526327,1737946244349,-621.47,0.00019294,2]
[350526328,1737946244358,-2312.72,0.00019295,2]
[350526329,1737946244368,-673.99,0.00019295,2]
[350526330,1737946244377,-1083.88,0.00019295,2]
[350526331,1737946244387,-302.90913937,0.0001938,2]
[350526332,1737946244396,-529.28,0.00019431,2]
[350526333,1737946244405,-500.0,0.00019431,2]
[350526334,1737946244415,-500.0,0.00019431,2]
[350526335,1737946244425,-500.0,0.00019431,2]
[350526336,1737946244435,-377.9042839,0.00019431,2]
[350526337,1737946244444,-500.0,0.00019431,2]
[350526338,1737946244454,-500.0,0.00019431,2]
[350526339,1737946244463,-276.08308046,0.00019431,2]
[350526340,1737946244473,-1653.98,0.00019431,2]
[350526341,1737946244483,-621.47,0.00019431,2]
[350526342,1737946244492,-2312.72,0.00019432,2]
[350526343,1737946244501,-673.99,0.00019432,2]
[350526344,1737946244510,-1083.88,0.00019432,2]
[350526345,1737946244519,-529.28,0.00019568,2]
[350526346,1737946244528,-500.0,0.00019568,2]
[350526347,1737946244538,-500.0,0.00019568,2]
[350526348,1737946244548,-500.0,0.00019568,2]
[350526349,1737946244558,-446.04,0.00019568,2]
[350526350,1737946244568,-640.31,0.00019568,2]
[350526351,1737946244577,-1653.98,0.00019568,2]
[350526352,1737946244586,-2312.72,0.00019569,2]
[350526353,1737946244595,-673.99,0.00019569,2]
[350526354,1737946244605,-1083.88,0.00019569,2]
[350526355,1737946244614,-302.90913937,0.0001957,2]
[350526356,1737946244623,-1120.97,0.000197,2]
[350526357,1737946244632,-529.28,0.00019705,2]
[350526358,1737946244641,-500.0,0.00019705,2]
[350526359,1737946244651,-500.0,0.00019705,2]
[350526360,1737946244660,-500.0,0.00019705,2]
[350526361,1737946244674,-1653.98,0.00019705,2]
[350526362,1737946244684,-2312.72,0.00019706,2]
[350526363,1737946244693,-673.99,0.00019706,2]
[350526364,1737946244704,-1083.88,0.00019706,2]
[350526365,1737946244713,-151.0,0.00019706,2]
[350526366,1737946244722,-151.712648,0.00019706,2]
[350526367,1737946244732,-302.90913937,0.0001976,2]
[350526368,1737946244744,-529.28,0.00019842,2]
[350526369,1737946244753,-500.0,0.00019842,2]
[350526370,1737946244846,-500.0,0.00019842,2]
[350526371,1737946244865,-154.16,0.00019842,2]
[350526372,1737946244875,-1653.98,0.00019842,2]
[350526373,1737946244885,-2312.72,0.00019843,2]
[350526374,1737946244895,-673.99,0.00019843,2]
[350526375,1737946244905,-1083.88,0.00019843,2]
[350526376,1737946244915,-420.0,0.00019851,2]
[350526377,1737946244925,-356.0,0.00019881,2]
[350526378,1737946244935,-395.0,0.00019882,2]
[350526379,1737946244944,-208.25279119,0.000199,2]
[350526380,1737946244954,-454.36370906,0.0001995,4]
[350526381,1737946244963,-529.28,0.00019979,2]
[350526382,1737946244972,-500.0,0.00019979,2]
[350526383,1737946244983,-500.0,0.00019979,2]
[350526384,1737946244993,-1653.98,0.00019979,2]
[350526385,1737946245002,-2312.72,0.0001998,2]
[350526386,1737946245012,-673.99,0.0001998,2]
[350526387,1737946245022,-1083.88,0.0001998,2]
[350526388,1737946245032,-151.0,0.0001998,2]
[350526389,1737946245042,-151.0,0.0001998,2]
[350526390,1737946245052,-208.25279113,0.00020076,2]
[350526391,1737946245061,-529.28,0.00020116,2]
[350526392,1737946245071,-500.0,0.00020116,2]
[350526393,1737946245081,-500.0,0.00020116,2]
[350526394,1737946245091,-1653.98,0.00020116,2]
[350526395,1737946245100,-2312.72,0.00020117,2]
[350526396,1737946245109,-673.99,0.00020117,2]
[350526397,1737946245119,-1083.88,0.00020117,2]
[350526398,1737946245129,-454.36370906,0.0002014,4]
[350526399,1737946245139,-208.25279113,0.00020253,2]
[350526400,1737946245148,-529.28,0.00020253,2]
[350526401,1737946245158,-500.0,0.00020253,2]
[350526402,1737946245170,-500.0,0.00020253,2]
[350526403,1737946245180,-1653.98,0.00020253,2]
[350526404,1737946245190,-2312.72,0.00020254,2]
[350526405,1737946245201,-673.99,0.00020254,2]
[350526406,1737946245212,-1083.88,0.00020254,2]
[350526407,1737946245222,-454.36370906,0.0002033,4]
[350526408,1737946245232,-529.28,0.0002039,2]
[350526409,1737946245242,-500.0,0.0002039,2]
[350526410,1737946245252,-500.0,0.0002039,2]
[350526411,1737946245262,-1653.98,0.0002039,2]
[350526412,1737946245272,-2312.72,0.00020391,2]
[350526413,1737946245282,-673.99,0.00020391,2]
[350526414,1737946245291,-151.0,0.00020391,2]
[350526415,1737946245301,-151.0,0.00020391,2]
[350526416,1737946245311,-1083.88,0.00020391,2]
[350526417,1737946245320,-584.323886,0.00020391,2]
[350526418,1737946245330,-584.323886,0.00020391,2]
[350526419,1737946245339,-151.0,0.00020391,2]
[350526420,1737946245348,-736.236547,0.00020391,2]
[350526421,1737946245358,-736.236547,0.00020391,2]
[350526422,1737946245368,-151.0,0.00020411,6]
[350526423,1737946245377,-208.25279113,0.00020429,2]
[350526424,1737946245386,-454.36370906,0.0002052,4]
[350526425,1737946245395,-529.28,0.00020527,2]
[350526426,1737946245405,-500.0,0.00020527,2]
[350526427,1737946245414,-500.0,0.00020527,2]
[350526428,1737946245425,-1653.98,0.00020527,2]
[350526429,1737946245434,-2312.72,0.00020528,2]
[350526430,1737946245443,-673.99,0.00020528,2]
[350526431,1737946245453,-1083.88,0.00020528,2]
[350526432,1737946245462,-176.92702893,0.00020569,2]
[350526433,1737946245471,-300.0,0.000206,9]
[350526434,1737946245481,-208.25279113,0.00020606,2]
[350526435,1737946245491,-500.0,0.00020664,2]
[350526436,1737946245501,-500.0,0.00020664,2]
[350526437,1737946245510,-529.28,0.00020664,2]
[350526438,1737946245519,-452.33923546,0.00020664,2]
[350526439,1737946245528,-508.37381265,0.00020664,2]
[350526440,1737946245538,-1653.98,0.00020664,2]
[350526441,1737946245547,-2312.72,0.00020665,2]
[350526442,1737946245557,-673.99,0.00020665,2]
[350526443,1737946245566,-1083.88,0.00020665,2]
[350526444,1737946245576,-456.35774521,0.0002071,4]
[350526445,1737946245585,-208.25279113,0.00020782,2]
[350526446,1737946245595,-151.0,0.00020783,6]
[350526447,1737946245604,-529.28,0.00020801,2]
[350526448,1737946245613,-1653.98,0.00020801,2]
[350526449,1737946245622,-2312.72,0.00020802,2]
[350526450,1737946245632,-673.99,0.00020802,2]
[350526451,1737946245641,-1083.88,0.00020802,2]
[350526452,1737946245650,-529.28,0.00020938,2]
[350526453,1737946245665,-1653.98,0.00020938,2]
[350526454,1737946245677,-2312.72,0.00020939,2]
[350526455,1737946245686,-673.99,0.00020939,2]
[350526456,1737946245697,-336.865126,0.00020939,2]
[350526457,1737946245706,-336.865126,0.00020939,2]
[350526458,1737946245715,-1083.88,0.00020939,2]
[350526459,1737946245724,-208.25279113,0.00020959,2]
[350526460,1737946245735,-529.28,0.00021075,2]
[350526462,1737946245744,-1653.98,0.00021075,2]
[350526463,1737946245753,-2312.72,0.00021076,2]
[350526464,1737946245763,-673.99,0.00021076,2]
[350526465,1737946245773,-169.156719,0.00021076,2]
[350526466,1737946245783,-169.156719,0.00021076,2]
[350526467,1737946245792,-1083.88,0.00021076,2]
[350526468,1737946245801,-208.25279113,0.00021135,2]
[350526470,1737946245810,-151.0,0.00021156,6]
[350526472,1737946245819,-152.823,0.0002116,2]
[350526473,1737946245828,-176.92702893,0.00021187,2]
[350526475,1737946245838,-529.28,0.00021212,2]
[350526477,1737946245847,-1653.98,0.00021212,2]
[350526479,1737946245857,-2312.72,0.00021213,2]
[350526482,1737946245867,-673.99,0.00021213,2]
[350526484,1737946245876,-1083.88,0.00021213,2]
[350526486,1737946245886,-184.10626,0.00021213,2]
[350526488,1737946245896,-208.25279113,0.00021312,2]
[350526489,1737946245905,-160.0,0.00021344,3]
[350526490,1737946245915,-529.4408011,0.00021349,2]
[350526491,1737946245925,-1654.02,0.00021349,2]
[350526492,1737946245935,-4568.55369388,0.0002135,5]
[350526493,1737946245944,-2312.78,0.0002135,2]
[350526494,1737946245955,-674.14,0.0002135,2]
[350526495,1737946245964,-1084.08,0.0002135,2]
[350526496,1737946245974,-208.25279113,0.00021488,2]
[350526497,1737946245983,-151.0,0.00021528,7]
[350526498,1737946245992,-587.0,0.00021655,2]
[350526499,1737946246001,-208.25279113,0.00021665,3]
[350526500,1737946246011,-160.0,0.00021706,2]
[350526501,1737946246021,-176.92702893,0.00021804,2]
[350526503,1737946246030,-208.25279113,0.00021841,3]
[350526505,1737946246040,-152.32,0.000219,31]
[350526507,1737946246050,-152.32,0.000219,31]
[350526509,1737946246060,-152.32,0.000219,31]
[350526510,1737946246071,-152.32,0.000219,31]
[350526511,1737946246080,-152.32,0.000219,31]
[350526512,1737946246089,-152.32,0.000219,31]
[350526513,1737946246099,-152.32,0.000219,31]
[350526514,1737946246109,-152.32,0.000219,31]
[350526515,1737946246118,-152.32,0.000219,31]
[350526516,1737946246127,-152.32,0.000219,31]
[350526518,1737946246137,-152.32,0.000219,31]
[350526520,1737946246146,-152.32,0.000219,31]
[350526521,1737946246155,-152.32,0.000219,31]
[350526522,1737946246165,-152.32,0.000219,31]
[350526523,1737946246175,-151.0,0.00021901,7]
[350526524,1737946246184,-365.49309606,0.0002199,8]
[350526525,1737946246194,-409.63575887,0.00021998,2]
[350526526,1737946246203,-500.0,0.00021998,2]
[350526527,1737946246212,-500.0,0.00021998,2]
[350526528,1737946246221,-500.0,0.00021998,2]
[350526529,1737946246230,-23010.88418637,0.00021999,5]
[350526530,1737946246239,-508.66649537,0.00021999,2]
[350526531,1737946246248,-506.03097818,0.00021999,2]
[350526532,1737946246257,-507.468839,0.00021999,2]
[350526533,1737946246267,-508.54597485,0.00021999,2]
[350526534,1737946246276,-511.64526928,0.00021999,2]
[350526535,1737946246285,-515.12830591,0.00021999,2]
[350526536,1737946246294,-510.38101684,0.00021999,2]
[350526537,1737946246304,-515.8603485,0.00021999,2]
[350526538,1737946246313,-507.2021619,0.00021999,2]
[350526539,1737946246322,-533.49093204,0.00021999,2]
[350526540,1737946246332,-504.85709432,0.00021999,2]
[350526541,1737946246341,-510.81655039,0.00021999,2]
[350526542,1737946246350,-607.1527235,0.00021999,2]
[350526543,1737946246360,-500.0,0.00021999,2]
[350526544,1737946246369,-509.41312677,0.00021999,2]
[350526545,1737946246378,-275.56909346,0.00021999,2]
[350526546,1737946246387,-507.70056193,0.00021999,2]
[350526547,1737946246396,-500.0,0.00021999,2]
[350526548,1737946246406,-500.0,0.00021999,7]
[350526549,1737946246416,-505.39038631,0.00021999,2]
[350526550,1737946246429,-500.0,0.00021999,2]
[350526551,1737946246438,-510.34281448,0.00021999,2]
[350526552,1737946246447,-504.80699041,0.00021999,2]
[350526553,1737946246456,-539.40651127,0.00021999,2]
[350526554,1737946246466,-500.0,0.00021999,2]
[350526555,1737946246475,-522.17335822,0.00021999,2]
[350526556,1737946246485,-500.0,0.00021999,2]
[350526557,1737946246494,-500.0,0.00021999,2]
[350526558,1737946246503,-443.43524524,0.00021999,2]
[350526559,1737946246513,-512.96376372,0.00021999,2]
[350526560,1737946246522,-500.0,0.00021999,2]
[350526561,1737946246531,-500.0,0.00021999,2]
[350526562,1737946246540,-500.0,0.00021999,2]
[350526563,1737946246550,-416.71131588,0.00021999,2]
[350526564,1737946246559,-500.0,0.00021999,2]
[350526565,1737946246568,-507.64616154,0.00021999,2]
[350526566,1737946246578,-500.0,0.00021999,2]
[350526567,1737946246587,-501.89853553,0.00021999,2]
[350526568,1737946246596,-505.26995175,0.00021999,2]
[350526569,1737946246605,-507.66493351,0.00021999,2]
[350526570,1737946246615,-466.92764307,0.00021999,2]
[350526571,1737946246623,-506.14450386,0.00021999,2]
[350526572,1737946246632,-541.52594739,0.00021999,2]
[350526573,1737946246641,-500.0,0.00021999,2]
[350526574,1737946246651,-500.0,0.00021999,2]
[350526575,1737946246660,-500.0,0.00021999,2]
[350526576,1737946246675,-505.7579406,0.00021999,2]
[350526577,1737946246684,-500.0,0.00021999,2]
[350526578,1737946246693,-500.0,0.00021999,2]
[350526579,1737946246703,-500.0,0.00021999,2]
[350526580,1737946246713,-643.20757423,0.00021999,2]
[350526581,1737946246723,-503.27974929,0.00021999,2]
[350526582,1737946246732,-500.0,0.00021999,2]
[350526583,1737946246741,-500.0,0.00021999,2]
[350526584,1737946246751,-515.80756507,0.00021999,2]
[350526585,1737946246760,-500.0,0.00021999,2]
[350526586,1737946246770,-500.0,0.00021999,2]
[350526587,1737946246779,-500.0,0.00021999,2]
[350526588,1737946246788,-485.09556773,0.00021999,2]
[350526589,1737946246797,-500.0,0.00021999,2]
[350526590,1737946246806,-500.0,0.00021999,2]
[350526591,1737946246815,-500.0,0.00021999,2]
[350526592,1737946246824,-500.0,0.00021999,2]
[350526593,1737946246833,-500.0,0.00021999,2]
[350526594,1737946246843,-500.0,0.00021999,2]
[350526595,1737946246852,-500.0,0.00021999,2]
[350526596,1737946246861,-500.0,0.00021999,2]
[350526597,1737946246870,-500.0,0.00021999,2]
[350526598,1737946246879,-500.0,0.00021999,2]
[350526599,1737946246888,-536.22961963,0.00021999,2]
[350526600,1737946246898,-500.0,0.00021999,2]
[350526601,1737946246907,-503.93607336,0.00021999,2]
[350526602,1737946246916,-500.0,0.00021999,2]
[350526603,1737946246927,-500.0,0.00021999,2]
[350526604,1737946246936,-500.0,0.00021999,2]
[350526605,1737946246945,-500.0,0.00021999,2]
[350526606,1737946246955,-500.0,0.00021999,2]
[350526607,1737946246963,-308.96654671,0.00021999,2]
[350526608,1737946246973,-638.19,0.00021999,2]
[350526609,1737946246982,-500.0,0.00021999,2]
[350526610,1737946246991,-505.14602505,0.00021999,2]